Workbook

Sheet résolution PT1000 sans AOP
A2: tension de ref | B2: nb bit | C2: résolution volt | D2: tension alim pt1000 | E2: résistance série PT1000 | G2: mini résitance serie | H2: maxi résitance série
A3: 3.3 | B3: 12 | C3: =A3/POWER(2,B3) -> 0.0008056640625 | D3: 3.3 | E3: 43000 | G3: =(D3/0.0001)-1000 -> 32000 | H3: =(D3/0.00001)-1000 -> 329000
D7: résolution max | G7: auto echauffement | H7: K*R*I2
A8: =D20+C3 -> 0.08292157592 | B8: =A8*(E3/(D3-D20)) -> 1108.065942 | C8: =B8-1097.3 -> 10.76594238 | D8: =1/(3.9/C8) -> 2.760498047
A16: résolution voulue | B16: résolution ohmique (PT1000)
A17: 0.01 | B17: =3.9*A17 -> 0.039
D19: mV
C20: 1097.3 | D20: =(D3*C20)/(E3+C20) -> 0.08211591186
C21: =C20+B17 -> 1097.339 | D21: =(D3*C21)/(E3+C21) -> 0.08211875778
C22: diff | D22: =D21-D20 -> 2.845919556e-06
C23: doit etre sup a 1 | D23: =D22/C3 -> 0.003532389849

Sheet Degree pt1000
A1: Température (°C) | B1: résistance | C1: tension diviseur | D1: Sortie AOP
A2: 0 | B2: =(A2*1000*0.00385)+1000 -> 1000 | C2: =(3.3*B2)/(16200+B2) -> 0.1918604651 | D2: =C2*(43/4.7) -> 1.755319149
A3: 10 | B3: =(A3*1000*0.00385)+1000 -> 1038.5 | C3: =(3.3*B3)/(16200+B3) -> 0.1988021 | D3: =C3*(43/4.7) -> 1.818827723
A4: 20 | B4: =(A4*1000*0.00385)+1000 -> 1077 | C4: 0.2057127974 | D4: =C4*(43/4.7) -> 1.882053252
A5: 21 | B5: 1080.85 | C5: 0.2064021735 | D5: 1.888360311
A6: 23 | B6: 1088.55 | C6: 0.2077800047 | D6: 1.900966
A7: 24 | B7: 1092.4 | C7: 0.2084684601 | D7: 1.907264635
A8: 24.5 | B8: 1094.325 | C8: 0.2088125729 | D8: 1.910412901 | E8: =D9-D8 -> 0.0006295690669 | G8: 62,5µV
A9: 24.6 | B9: 1094.71 | C9: 0.2088813863 | D9: 1.91104247
A10: 24.7 | B10: 1095.095 | C10: 0.2089501966 | D10: 1.911672011
A11: 24.8 | B11: 1095.48 | C11: 0.2090190038 | D11: 1.912301524
A12: 24.9 | B12: 1095.865 | C12: 0.209087808 | D12: 1.912931009
A13: 25 | B13: 1096.25 | C13: 0.2091566091 | D13: 1.913560466
A14: 25.1 | B14: 1096.635 | C14: 0.2092254071 | D14: 1.914189895
A15: 25.2 | B15: 1097.02 | C15: 0.2092942021 | D15: 1.914819296
A16: 25.3 | B16: 1097.405 | C16: 0.209362994 | D16: 1.915448669
A17: 25.4 | B17: 1097.79 | C17: 0.2094317829 | D17: 1.916078014
A18: 25.5 | B18: 1098.175 | C18: 0.2095005687 | D18: 1.916707331
A19: 26 | B19: 1100.1 | C19: 0.2098444518 | D19: 1.919853495
A20: 27 | B20: 1103.95 | C20: 0.2105319884 | D20: 1.926143723
A21: 28 | B21: 1107.8 | C21: 0.2112192191 | D21: 1.932431153
A22: 29 | B22: 1111.65 | C22: 0.2119061441 | D22: 1.938715787
A23: 30 | B23: 1115.5 | C23: 0.2125927637 | D23: 1.944997625
A24: 40 | B24: 1154 | C24: 0.2194422035 | D24: 2.007662713
A25: 50 | B25: 1192.5 | C25: 0.2262613195 | D25: 2.07005037
A26: 100 | B26: 1385 | C26: 0.2599090134 | D26: 2.377890973
A27: 150 | B27: 1577.5 | C27: 0.2928280129 | D27: 2.679064799
A28: 200 | B28: 1770 | C28: 0.3250417362 | D28: 2.973786097
A29: 250 | B29: 1962.5 | C29: 0.3565726084 | D29: 3.262260034
